fUST/lending_fUST_20250701
["ID","MTS","AMOUNT","RATE_DAILY","PERIOD"]
[368788924,1751367052504,-539.93231,0.00025136,7]
[368788926,1751367052513,-539.93231,0.00025136,7]
[368788928,1751367052523,-539.93231,0.00025136,7]
[368788930,1751367052532,-539.93231,0.00025136,7]
[368788931,1751367052541,-539.93231,0.00025136,7]
[368788933,1751367052551,-539.93231,0.00025136,7]
[368788936,1751367052560,-151.0,0.00025136,7]
[368788938,1751367052569,-151.0,0.00025136,7]
[368788940,1751367052579,-151.0,0.00025136,7]
[368788942,1751367052588,-151.0,0.00025136,7]
[368788944,1751367052597,-151.0,0.00025136,7]
[368788946,1751367052607,-151.0,0.00025136,7]
[368788948,1751367052616,-151.0,0.00025136,7]
[368788950,1751367052625,-151.0,0.00025136,7]
[368788952,1751367052634,-151.0,0.00025136,7]
[368788954,1751367052644,-151.0,0.00025136,7]
[368788956,1751367052654,-151.0,0.00025136,7]
[368788958,1751367052663,-151.0,0.00025136,7]
[368788960,1751367052672,-151.0,0.00025136,7]
[368788961,1751367052681,-151.0,0.00025136,7]
[368788963,1751367052691,-151.0,0.00025136,7]
[368788965,1751367052700,-151.0,0.00025136,7]
[368788967,1751367052709,-151.0,0.00025136,7]
[368788969,1751367052720,-151.0,0.00025136,7]
[368788971,1751367052729,-151.0,0.00025136,7]
[368788973,1751367052738,-151.0,0.00025136,7]
[368788975,1751367052747,-176.470104,0.00025136,7]
[368788977,1751367052757,-151.0,0.00025136,7]
[368788979,1751367052766,-151.0,0.00025136,7]
[368788981,1751367052776,-151.0,0.00025136,7]
[368788983,1751367052785,-151.0,0.00025136,7]
[368788985,1751367052794,-151.0,0.00025136,7]
[368788987,1751367052803,-151.0,0.00025136,7]
[368788989,1751367052812,-151.0,0.00025136,7]
[368788991,1751367052821,-475.665334,0.00025136,7]
[368788993,1751367052831,-151.0,0.00025136,7]
[368788995,1751367052840,-475.665334,0.00025136,7]
[368788997,1751367052849,-151.0,0.00025136,7]
[368788999,1751367052858,-475.665334,0.00025136,7]
[368789001,1751367052869,-475.665334,0.00025136,7]
[368789003,1751367052878,-475.665334,0.00025136,7]
[368789005,1751367052888,-475.665334,0.00025136,7]
[368789007,1751367052897,-151.0,0.00025136,7]
[368789009,1751367052906,-151.0,0.00025136,7]
[368789011,1751367052915,-475.665334,0.00025136,7]
[368789013,1751367052924,-259.874984,0.00025136,7]
[368789015,1751367052934,-475.665334,0.00025136,7]
[368789017,1751367052944,-475.665334,0.00025136,7]
[368789019,1751367052953,-475.665334,0.00025136,7]
[368789021,1751367052962,-475.665334,0.00025136,7]
[368789023,1751367052972,-475.66534,0.00025136,7]
[368789025,1751367052981,-151.0,0.00025136,7]
[368789027,1751367052990,-151.0,0.00025136,7]
[368789029,1751367052999,-151.0,0.00025136,7]
[368789031,1751367053009,-151.0,0.00025136,7]
[368789033,1751367053018,-151.0,0.00025136,7]
[368789035,1751367053027,-151.0,0.00025136,7]
[368789037,1751367053036,-151.0,0.00025136,7]
[368789039,1751367053046,-151.0,0.00025136,7]
[368789041,1751367053055,-151.0,0.00025136,7]
[368789043,1751367053065,-242.494976,0.00025136,7]
[368789045,1751367053074,-151.0,0.00025136,7]
[368789047,1751367053083,-151.0,0.00025136,7]
[368789049,1751367053093,-151.0,0.00025136,7]
[368789051,1751367053102,-158.250518,0.00025136,7]
[368789053,1751367053112,-151.0,0.00025136,2]
[368789055,1751367053122,-151.0,0.00025136,2]
[368789057,1751367053131,-151.0,0.00025136,2]
[368789059,1751367053141,-151.0,0.00025136,2]
[368789061,1751367053151,-151.0,0.00025136,2]
[368789063,1751367053160,-151.0,0.00025136,2]
[368789065,1751367053169,-151.0,0.00025136,7]
[368789067,1751367053179,-151.0,0.00025136,7]
[368789069,1751367053188,-151.0,0.00025136,7]
[368789071,1751367053198,-151.0,0.00025136,7]
[368789073,1751367053208,-151.0,0.00025136,7]
[368789075,1751367053217,-151.0,0.00025136,7]
[368789078,1751367053227,-1478608.80048495,0.00025137,20]
[368789150,1751367053968,-399.48098845,0.00021495,2]
[368789151,1751367053978,-138.91926305,0.00025123,2]
[368800426,1751367178159,-189.35706769,0.00017482,2]
[368801400,1751367241381,528.391534,0.00013699,2]
[368801401,1751367261536,-185.38644206,0.00017416,2]
[368801403,1751367431122,5000.0,0.0001711,2]
[368801412,1751367452554,10000.0,0.00016634,2]
[368801414,1751367462397,24900.0,0.00016708,2]
[368801893,1751367638515,5000.0,0.0001711,2]
[368802002,1751367654541,5000.0,0.0001711,2]
[368802016,1751367672604,5000.0,0.0001711,2]
[368802031,1751367689795,5000.0,0.0001711,2]
[368802032,1751367690051,-205.61546908,0.00017306,2]
[368802033,1751367690081,-500.0,0.00017406,2]
[368802034,1751367690108,-345.34299054,0.00017406,2]
[368802035,1751367690143,-469.0,0.00017582,2]
[368802036,1751367690171,-300.0,0.00017582,2]
[368802037,1751367690201,-1200.0,0.00017582,2]
[368802038,1751367690232,-682.53,0.00017583,3]
[368802039,1751367690259,-341.26,0.00017583,3]
[368802040,1751367690429,-170.63,0.00017583,3]
[368802041,1751367690458,-511.92,0.00017583,3]
[368802042,1751367690485,-460.0,0.00017591,2]
[368802043,1751367690512,-232.25180472,0.00017591,2]
[368802044,1751367690540,-460.0,0.00017591,2]
[368802045,1751367690572,-460.0,0.00017591,2]
[368802046,1751367690601,-460.0,0.00017591,2]
[368802047,1751367690629,-460.0,0.00017591,2]
[368802048,1751367690657,-460.0,0.00017591,2]
[368802049,1751367690685,-460.0,0.00017591,2]
[368802050,1751367690713,-460.0,0.00017591,2]
[368802051,1751367690744,-460.0,0.00017591,2]
[368802052,1751367690772,-460.0,0.00017591,2]
[368802053,1751367690801,-422.89947132,0.00017591,2]
[368802054,1751367690917,-37.10052868,0.00017591,2]
[368802055,1751367690945,-547.70176323,0.00017591,2]
[368802057,1751367690973,-460.0,0.00017591,2]
[368802058,1751367691001,-460.0,0.00017591,2]
[368802059,1751367691031,-460.0,0.00017591,2]
[368802060,1751367691060,-460.0,0.00017591,2]
[368802061,1751367691088,-460.0,0.00017591,2]
[368802062,1751367691117,-460.0,0.00017591,2]
[368802063,1751367691146,-460.0,0.00017591,2]
[368802064,1751367691174,-460.0,0.00017591,2]
[368802065,1751367691205,-460.0,0.00017591,2]
[368802066,1751367691236,-460.0,0.00017591,2]
[368802067,1751367691264,-460.68887809,0.00017591,2]
[368802068,1751367691294,-460.0,0.00017591,2]
[368802069,1751367691321,-460.0,0.00017591,2]
[368802070,1751367691350,-460.0,0.00017591,2]
[368802071,1751367691379,-461.1,0.00017591,2]
[368802072,1751367691407,-460.0,0.00017592,2]
[368802073,1751367691433,-300.0,0.00017592,2]
[368802074,1751367691462,-460.0,0.00017592,2]
[368802075,1751367691491,-460.0,0.00017592,2]
[368802076,1751367691521,-460.0,0.00017592,2]
[368802077,1751367691552,-286.81766,0.00017592,2]
[368802078,1751367691661,-173.18234,0.00017592,2]
[368802079,1751367691692,-770.69,0.00017592,2]
[368802080,1751367691723,-460.0,0.00017592,2]
[368802082,1751367691762,-496.9,0.00017592,2]
[368802083,1751367691799,-460.0,0.00017592,2]
[368802084,1751367691831,-460.0,0.00017592,2]
[368802085,1751367691864,-460.0,0.00017592,2]
[368802086,1751367691894,-460.0,0.00017592,2]
[368802087,1751367691924,-460.0,0.00017592,2]
[368802088,1751367691954,-460.0,0.00017592,2]
[368802089,1751367691984,-460.0,0.00017592,2]
[368802090,1751367692015,-460.0,0.00017592,2]
[368802091,1751367692045,-460.0,0.00017592,2]
[368802093,1751367692076,-460.0,0.00017592,2]
[368802094,1751367692106,-460.0,0.00017592,2]
[368802095,1751367692136,-460.0,0.00017592,2]
[368802096,1751367692169,-460.0,0.00017592,2]
[368802097,1751367692199,-460.0,0.00017592,2]
[368802098,1751367692230,-491.33,0.00017592,2]
[368802099,1751367692260,-460.0,0.00017592,2]
[368802100,1751367692290,-460.0,0.00017592,2]
[368802101,1751367692319,-35.79532,0.00017592,2]
[368802102,1751367692487,-424.20468,0.00017592,2]
[368802103,1751367692518,-460.0,0.00017592,2]
[368802104,1751367692674,-460.0,0.00017592,2]
[368802105,1751367692705,-460.0,0.00017592,2]
[368802106,1751367692735,-460.0,0.00017592,2]
[368802107,1751367692766,-460.0,0.00017592,2]
[368802108,1751367692796,-460.0,0.00017592,2]
[368802109,1751367692825,-463.74128595,0.00017592,2]
[368802110,1751367692853,-460.0,0.00017592,2]
[368802111,1751367692883,-544.15,0.00017592,2]
[368802112,1751367692913,-460.0,0.00017592,2]
[368802113,1751367692942,-460.0,0.00017592,2]
[368802114,1751367692970,-460.0,0.00017592,2]
[368802115,1751367693000,-460.0,0.00017592,2]
[368802116,1751367693029,-460.0,0.00017592,2]
[368802117,1751367693058,-460.0,0.00017592,2]
[368802118,1751367693087,-460.0,0.00017592,2]
[368802119,1751367693117,-460.0,0.00017592,2]
[368802120,1751367693147,-460.0,0.00017592,2]
[368802121,1751367693180,-460.0,0.00017592,2]
[368802122,1751367694150,-460.0,0.00017592,2]
[368802124,1751367696231,-18396.34450015,0.00017593,2]
[368802125,1751367696254,-460.0,0.00017592,2]
[368802126,1751367696263,-19540.0,0.00017593,2]
[368802127,1751367696291,-20000.0,0.00017593,2]
[368802128,1751367696309,-460.0,0.00017593,2]
[368802129,1751367696323,-19080.0,0.00017593,2]
[368802130,1751367696342,-20000.0,0.00017593,2]
[368802131,1751367696361,-20000.0,0.00017593,2]
[368802132,1751367696379,-20000.0,0.00017593,2]
[368802133,1751367696397,-20000.0,0.00017593,2]
[368802134,1751367696412,-2523.65549985,0.00017593,2]
[368802135,1751367696422,-909.46290643,0.00017594,2]
[368802136,1751367696431,-460.0,0.00017659,2]
[368802137,1751367696441,-460.0,0.00017659,2]
[368802138,1751367696451,-460.0,0.00017659,2]
[368802139,1751367696460,-460.0,0.00017659,2]
[368802140,1751367696470,-460.0,0.00017659,2]
[368802141,1751367696479,-460.0,0.00017659,2]
[368802142,1751367696489,-460.0,0.00017659,2]
[368802143,1751367696498,-460.0,0.00017659,2]
[368802144,1751367696508,-460.0,0.00017659,2]
[368802145,1751367696517,-460.0,0.00017659,2]
[368802146,1751367696526,-460.0,0.00017659,2]
[368802147,1751367696536,-460.0,0.00017659,2]
[368802148,1751367696546,-460.0,0.00017659,2]
[368802150,1751367696559,-460.0,0.00017659,2]
[368802151,1751367696568,-310.64200539,0.00017659,2]
[368802152,1751367696578,-460.0,0.00017659,2]
[368802153,1751367696587,-460.0,0.00017659,2]
[368802154,1751367696598,-460.0,0.00017659,2]
[368802155,1751367696607,-460.0,0.00017659,2]
[368802156,1751367696617,-460.0,0.00017659,2]
[368802157,1751367696627,-460.0,0.00017659,2]
[368802158,1751367696637,-460.0,0.00017659,2]
[368802159,1751367696646,-460.0,0.00017659,2]
[368802160,1751367696656,-460.0,0.00017659,2]
[368802161,1751367696665,-460.0,0.00017659,2]
[368802162,1751367696675,-169.40821158,0.00017659,2]
[368802163,1751367696685,-460.0,0.00017659,2]
[368802164,1751367696694,-472.93,0.00017659,2]
[368802165,1751367696704,-460.0,0.00017659,2]
[368802166,1751367696713,-460.0,0.00017659,2]
[368802167,1751367696723,-460.0,0.00017659,2]
[368802168,1751367696732,-460.0,0.00017659,2]
[368802169,1751367696740,-460.0,0.00017659,2]
[368802170,1751367696749,-460.0,0.00017659,2]
[368802171,1751367696759,-460.0,0.00017659,2]
[368802172,1751367696768,-460.0,0.00017659,2]
[368802173,1751367696777,-433.90137675,0.00017659,2]
[368802175,1751367697356,-460.0,0.00017592,2]
[368802176,1751367697387,-26.09862325,0.00017659,2]
[368802177,1751367697417,-460.0,0.00017659,2]
[368802178,1751367697448,-460.0,0.00017659,2]
[368802179,1751367697478,-460.0,0.00017659,2]
[368802181,1751367697508,-460.0,0.00017659,2]
[368802182,1751367697642,-460.0,0.00017659,2]
[368802183,1751367697671,-460.0,0.00017659,2]
[368802184,1751367697703,-460.0,0.00017659,2]
[368802185,1751367697733,-460.0,0.00017659,2]
[368802186,1751367697764,-460.0,0.00017659,2]
[368802187,1751367697795,-460.0,0.00017659,2]
[368802188,1751367697826,-507.27,0.00017659,2]
[368802189,1751367697856,-460.0,0.00017659,2]
[368802190,1751367697886,-460.0,0.00017659,2]
[368802191,1751367697915,-460.0,0.00017659,2]
[368802192,1751367697945,-460.0,0.00017659,2]
[368802193,1751367697974,-460.0,0.00017659,2]
[368802194,1751367698003,-460.0,0.00017659,2]
[368802195,1751367698035,-460.0,0.00017659,2]
[368802196,1751367698064,-460.0,0.00017659,2]
[368802197,1751367698093,-460.0,0.00017659,2]
[368802198,1751367698122,-73.2627535,0.00017659,2]
[368802199,1751367698452,-386.7372465,0.00017659,2]
[368802203,1751367702574,-166.41543976,0.00017559,2]
[368802204,1751367702604,-460.0,0.00017659,2]
[368802205,1751367702634,-460.0,0.00017659,2]
[368802206,1751367702663,-460.0,0.00017659,2]
[368802207,1751367702692,-460.0,0.00017659,2]
[368802208,1751367702720,-460.0,0.00017659,2]
[368802209,1751367702749,-460.0,0.00017659,2]
[368802210,1751367702777,-460.0,0.00017659,2]
[368802211,1751367702805,-460.0,0.00017659,2]
[368802212,1751367702835,-737.78,0.00017659,2]
[368802213,1751367702864,-460.0,0.00017659,2]
[368802214,1751367702892,-460.0,0.00017659,2]
[368802215,1751367702919,-460.0,0.00017659,2]
[368802216,1751367702947,-460.0,0.00017659,2]
[368802217,1751367702975,-460.0,0.00017659,2]
[368802218,1751367703003,-460.0,0.00017659,2]
[368802219,1751367703030,-500.0,0.00017673,2]
[368802220,1751367703058,-500.0,0.00017673,2]
[368802221,1751367703084,-460.0,0.00017693,2]
[368802222,1751367703111,-460.0,0.00017693,2]
[368802223,1751367703138,-460.0,0.00017693,2]
[368802224,1751367703169,-91.60912048,0.00017693,2]
[368802225,1751367703257,-368.39087952,0.00017693,2]
[368802226,1751367703284,-460.0,0.00017693,2]
[368802227,1751367703314,-460.0,0.00017693,2]
[368802228,1751367703343,-460.0,0.00017693,2]
[368802229,1751367703387,-400.0,0.00017693,2]
[368802230,1751367703415,-460.0,0.00017693,2]
[368802231,1751367703442,-460.0,0.00017693,2]
[368802232,1751367703470,-460.0,0.00017693,2]
[368802233,1751367703500,-460.0,0.00017693,2]
[368802234,1751367703528,-460.0,0.00017693,2]
[368802235,1751367703557,-460.0,0.00017693,2]
[368802236,1751367703587,-500.0,0.00017693,2]
[368802237,1751367703617,-188.93,0.00017693,2]
[368802238,1751367703648,-460.0,0.00017693,2]
[368802239,1751367703676,-460.0,0.00017693,2]
[368802240,1751367703704,-460.0,0.00017693,2]
[368802241,1751367703732,-460.0,0.00017693,2]
[368802242,1751367703762,-460.0,0.00017693,2]
[368802243,1751367703790,-460.0,0.00017693,2]
[368802244,1751367703819,-460.0,0.00017693,2]
[368802245,1751367703848,-460.0,0.00017693,2]
[368802246,1751367703876,-460.0,0.00017693,2]
[368802247,1751367703904,-65.35824096,0.00017693,2]
[368802248,1751367704003,-500.0,0.00017659,2]
[368802249,1751367704030,-394.64175904,0.00017693,2]
[368802250,1751367704057,-379.33988823,0.00017693,2]
[368802251,1751367704083,-460.0,0.00017693,2]
[368802252,1751367704110,-460.0,0.00017693,2]
[368802253,1751367704136,-460.0,0.00017693,2]
[368802254,1751367704163,-343.59613819,0.00017693,2]
[368802255,1751367704190,-460.0,0.00017693,2]
[368802256,1751367704217,-460.0,0.00017693,2]
[368802257,1751367704243,-461.45929443,0.00017693,2]
[368802258,1751367704271,-460.0,0.00017693,2]
[368802259,1751367704299,-460.0,0.00017693,2]
[368802260,1751367704326,-384.65627954,0.00017693,2]
[368802261,1751367704354,-460.0,0.00017693,2]
[368802262,1751367704381,-460.0,0.00017693,2]
[368802263,1751367704409,-392.97935569,0.00017693,2]
[368802264,1751367704436,-460.0,0.00017693,2]
[368802265,1751367704464,-460.0,0.00017693,2]
[368802266,1751367704492,-460.0,0.00017693,2]
[368802267,1751367704521,-460.0,0.00017693,2]
[368802268,1751367704552,-460.0,0.00017693,2]
[368802269,1751367704583,-460.0,0.00017693,2]
[368802270,1751367704621,-26.65456976,0.00017693,2]
[368802271,1751367704763,-433.34543024,0.00017693,2]
[368802272,1751367704796,-460.0,0.00017693,2]
[368802273,1751367704824,-567.26302422,0.00017693,2]
[368802274,1751367704852,-584.7892428,0.00017693,2]
[368802275,1751367704880,-560.77469284,0.00017693,2]
[368802276,1751367704909,-460.0,0.00017693,2]
[368802277,1751367704938,-460.0,0.00017693,2]
[368802278,1751367704967,-460.0,0.00017693,2]
[368802279,1751367704998,-460.0,0.00017693,2]
[368802280,1751367705032,-460.0,0.00017693,2]
[368802281,1751367705062,-531.8406779,0.00017693,2]
[368802282,1751367705090,-460.0,0.00017693,2]
[368802283,1751367705120,-460.0,0.00017693,2]
[368802284,1751367705148,-460.0,0.00017693,2]
[368802285,1751367705178,-321.9108657,0.00017693,2]
[368802286,1751367705206,-460.0,0.00017693,2]
[368802287,1751367705234,-365.33275755,0.00017694,2]
[368802288,1751367705263,-432.11160188,0.00017694,2]
[368802289,1751367705292,-460.0,0.00017694,2]
[368802290,1751367705321,-401.47228451,0.00017694,2]
[368802291,1751367705358,-310.23055379,0.00017694,2]
[368802292,1751367705387,-401.85773714,0.00017694,2]
[368802293,1751367705530,-500.0,0.00017659,2]
[368802294,1751367705564,-58.14226286,0.00017694,2]
[368802295,1751367705592,-460.0,0.00017694,2]
[368802296,1751367705622,-460.0,0.00017694,2]
[368802297,1751367705652,-460.0,0.00017694,2]
[368802298,1751367705680,-460.0,0.00017694,2]
[368802299,1751367705709,-460.0,0.00017694,2]
[368802300,1751367705740,-308.02663832,0.00017694,2]
[368802301,1751367705769,-460.0,0.00017694,2]
[368802302,1751367705800,-460.0,0.00017694,2]
[368802303,1751367705828,-460.0,0.00017694,2]
[368802304,1751367705857,-460.0,0.00017694,2]
[368802305,1751367705887,-553.13,0.00017694,2]
[368802306,1751367705917,-430.0,0.00017694,2]
[368802307,1751367705948,-460.0,0.00017694,2]
[368802308,1751367705980,-460.0,0.00017694,2]
[368802309,1751367706010,-460.0,0.00017694,2]
[368802310,1751367706040,-460.0,0.00017694,2]
[368802311,1751367706069,-460.0,0.00017694,2]
[368802312,1751367706206,-460.0,0.00017694,2]
[368802313,1751367706235,-460.0,0.00017694,2]
[368802314,1751367706263,-460.0,0.00017694,2]
[368802315,1751367706292,-201.40219764,0.00017694,2]
[368802316,1751367706410,-258.59780236,0.00017694,2]
[368802317,1751367706438,-460.0,0.00017694,2]
[368802318,1751367706466,-460.0,0.00017694,2]
[368802319,1751367706495,-460.0,0.00017694,2]
[368802320,1751367706524,-460.0,0.00017694,2]
[368802321,1751367706553,-460.0,0.00017694,2]
[368802322,1751367706585,-460.0,0.00017694,2]
[368802323,1751367706615,-460.0,0.00017694,2]
[368802325,1751367706644,-460.0,0.00017694,2]
[368802326,1751367706671,-460.0,0.00017694,2]
[368802327,1751367706699,-460.0,0.00017694,2]
[368802328,1751367706728,-460.0,0.00017695,2]
[368802329,1751367706756,-460.0,0.00017695,2]
[368802330,1751367706785,-460.0,0.00017695,2]
[368802331,1751367706815,-460.0,0.00017695,2]
[368802332,1751367706843,-460.0,0.00017695,2]
[368802333,1751367706871,-418.97523828,0.00017695,2]
[368802334,1751367706899,-260.22839614,0.00017695,2]
[368802335,1751367706927,-460.0,0.00017695,2]
[368802336,1751367707094,500.0,0.00017672,2]
[368802337,1751367707472,500.0,0.00017692,2]
[368802338,1751367707612,460.0,0.00017592,2]
[368802339,1751367708011,500.0,0.00017693,2]
[368802340,1751367708276,500.0,0.00017693,2]
[368802342,1751367708594,460.0,0.00017591,2]
[368802343,1751367708661,484.39712644,0.00017693,2]
[368802344,1751367708684,15.60287356,0.00017693,2]
[368802345,1751367708916,453.2,0.00017694,2]
[368802346,1751367710299,5000.0,0.000177,2]
[368802347,1751367710455,460.0,0.00017591,2]
[368802348,1751367710596,460.0,0.00017659,2]
[368802349,1751367710711,460.0,0.00017592,2]
[368802351,1751367710874,460.0,0.00017591,2]
[368802352,1751367710902,460.0,0.00017591,2]
[368802354,1751367711677,460.0,0.00017591,2]
[368802356,1751367713408,460.0,0.00017659,2]
[368802358,1751367713813,460.0,0.00017591,2]
[368802359,1751367715096,460.0,0.00017591,2]
[368802364,1751367719960,460.0,0.00017693,2]
[368802367,1751367721747,460.0,0.00017693,2]
[368802369,1751367722416,5000.0,0.000177,2]
[368802371,1751367724472,463.53623899,0.00017591,2]
[368802376,1751367726420,215.97376704,0.00017591,2]
[368802380,1751367732158,460.0,0.00017592,2]
[368802382,1751367733785,460.0,0.00017591,2]
[368802383,1751367733812,460.0,0.00017592,2]
[368802388,1751367736895,460.0,0.00017591,2]
[368802390,1751367738054,500.0,0.00017592,2]
[368802392,1751367738324,500.0,0.00017592,2]
[368802393,1751367738473,951.68712041,0.000177,2]
[368802394,1751367738497,4048.31287959,0.000177,2]
[368802395,1751367738575,500.0,0.00017592,2]
[368802397,1751367738816,500.0,0.00017592,2]
[368802398,1751367738847,460.0,0.00017591,2]
[368802399,1751367739054,500.0,0.00017592,2]
[368802401,1751367740193,500.0,0.00017592,2]
[368802403,1751367740492,500.0,0.00017592,2]
[368802404,1751367740742,500.0,0.00017592,2]
[368802405,1751367740981,500.0,0.00017691,2]
[368802406,1751367741240,500.0,0.00017693,2]
[368802413,1751367747396,460.0,0.00017591,2]
[368802414,1751367749421,460.0,0.00017591,2]
[368802415,1751367749645,460.0,0.00017591,2]
[368802418,1751367751038,460.0,0.00017591,2]
[368802419,1751367751304,460.0,0.00017693,2]
[368802421,1751367752527,3854.72,0.000177,2]
[368802422,1751367752751,418.56414791,0.00017591,2]
[368802423,1751367753117,460.0,0.00017591,2]
[368802426,1751367755200,4458.4029725,0.000177,2]
[368802427,1751367755224,541.5970275,0.000177,2]
[368802428,1751367755385,460.0,0.00017591,2]
[368802430,1751367759341,460.0,0.00017659,2]
[368802431,1751367760223,460.0,0.00017591,2]
[368802433,1751367761218,460.0,0.00017591,2]
[368802434,1751367761491,460.0,0.00017693,2]
[368802435,1751367762823,460.0,0.00017591,2]
[368802436,1751367763072,539.02008309,0.00017659,2]
[368802437,1751367766036,460.0,0.00017592,2]
[368802441,1751367768907,460.0,0.00017592,2]
[368802442,1751367771087,5000.0,0.000177,2]
[368802443,1751367772458,590.47,0.00017591,2]
[368802444,1751367772582,460.0,0.00017591,2]
[368802447,1751367773480,460.0,0.00017693,2]
[368802448,1751367773829,247.10801659,0.00017591,2]
[368802450,1751367777312,460.0,0.00017659,2]
[368802452,1751367777870,460.0,0.00017693,2]
[368802456,1751367780551,460.0,0.00017591,2]
[368802458,1751367782710,460.0,0.00017591,2]
[368802460,1751367784716,460.0,0.00017592,2]
[368802461,1751367784821,283.83264922,0.00017591,2]
[368802462,1751367785068,460.0,0.00017591,2]
[368802463,1751367785375,405.68138621,0.00017591,2]
[368802464,1751367785552,460.0,0.00017591,2]
[368802465,1751367785746,460.0,0.00017659,2]
[368802466,1751367785879,460.0,0.00017659,2]
[368802468,1751367786788,3652.29083739,0.000177,2]
[368802469,1751367786812,1347.70916261,0.000177,2]
[368802473,1751367789585,460.0,0.00017591,2]
[368802474,1751367789889,464.03078145,0.00017659,2]
[368802482,1751367797107,460.0,0.00017591,2]
[368802486,1751367801324,500.0,0.00017591,2]
[368802490,1751367801562,460.0,0.00017693,2]
[368802491,1751367801624,587.00716448,0.00017592,2]
[368802493,1751367803318,5000.0,0.000177,2]
[368802495,1751367806309,402.85771402,0.00017693,2]
[368802497,1751367807632,460.0,0.00017592,2]
[368802498,1751367807796,460.0,0.00017591,2]
[368802499,1751367807826,9398.39517744,0.00017493,2]
[368802543,1751367857846,198.43844779,0.00016968,2]
[368802550,1751367876650,1460.30392933,0.0002,31]
[368802563,1751367900971,251.87744,0.00024657,120]
[368802564,1751367947095,-175.24128753,0.00017144,2]
[368802565,1751367947127,-3198.37066664,0.00017318,2]
[368802566,1751367980262,28719.31583627,0.00017,2]
[368802567,1751368009069,5000.0,0.0001711,2]
[368802568,1751368026010,-271.9431591,0.00017316,2]
[368802569,1751368029749,-246.91886229,0.00017316,2]
[368802570,1751368032084,-192.74137704,0.00017316,2]
[368802571,1751368037583,-197.99027078,0.00017316,2]
[368802572,1751368038088,-1941.92429153,0.00017316,2]
[368802573,1751368040076,-2148.48203926,0.00017316,2]
[368802574,1751368040097,-930.0,0.00017491,2]
[368802575,1751368040119,-300.0,0.00017491,2]
[368802576,1751368040141,-500.0,0.00017492,2]
[368802577,1751368040164,-282.8229398,0.00017492,2]
[368802578,1751368040187,-324.96952973,0.00017492,2]
[368802579,1751368086546,-199.79247995,0.00017317,2]
[368802580,1751368088326,-206.03421299,0.00017317,2]
[368802581,1751368090106,-205.7632173,0.00017317,2]
[368802582,1751368094220,-329.66347564,0.00017317,2]
[368802584,1751368146110,-4058.74661412,0.00017317,2]
[368802585,1751368146132,-300.0,0.00017491,2]
[368802586,1751368146155,-175.03047027,0.00017492,2]
[368802587,1751368146176,-507.24465343,0.00017492,2]
[368802588,1751368146197,-461.19524361,0.00017492,2]
[368802589,1751368146216,-460.0,0.00017492,2]